[Event "ONJK DE"]
[Site "Enschede, Netherlands"]
[Date "2022.08.08"]
[Round "1.6"]
[White "Zhang, Yourui Eric (E)"]
[Black "Katpatal, Akshaj (E)"]
[Result "0-1"]
[TimeControl "40min + 30sec/move"]
[WhiteElo "979"]
[BlackElo "1874"]

1. e4 {[%clk 00:40:58]} {[%emt 00:00:01]} e5 {[%clk 00:40:56]} {[%emt
00:00:04]} 2. Nf3 {[%clk 00:41:25]} {[%emt 00:00:04]} Nc6 {[%clk 00:41:22]}
{[%emt 00:00:04]} 3. Bc4 {[%clk 00:41:45]} {[%emt 00:00:10]} Bc5 {[%clk
00:41:46]} {[%emt 00:00:06]} 4. Nc3 {[%clk 00:42:08]} {[%emt 00:00:06]} Nf6
{[%clk 00:42:12]} {[%emt 00:00:05]} 5. O-O {[%clk 00:42:22]} {[%emt 00:00:10]}
d6 {[%clk 00:42:36]} {[%emt 00:00:12]} 6. h3 {[%clk 00:42:46]} {[%emt
00:00:06]} Be6 {[%clk 00:42:52]} {[%emt 00:00:14]} 7. Nd5 {[%clk 00:42:49]}
{[%emt 00:00:26]} Nxe4 {[%clk 00:43:12]} {[%emt 00:00:11]} 8. d3 {[%clk
00:42:54]} {[%emt 00:00:24]} Nxf2 {[%clk 00:42:36]} {[%emt 00:01:07]} 9. Rxf2
{[%clk 00:43:08]} {[%emt 00:00:15]} Bxf2+ {[%clk 00:43:01]} {[%emt 00:00:05]}
10. Kxf2 {[%clk 00:43:29]} {[%emt 00:00:09]} Na5 {[%clk 00:42:52]} {[%emt
00:00:40]} 11. Ne3 {[%clk 00:43:39]} {[%emt 00:00:20]} Nxc4 {[%clk 00:43:11]}
{[%emt 00:00:10]} 12. Nxc4 {[%clk 00:43:21]} {[%emt 00:00:48]} Bxc4 {[%clk
00:43:32]} {[%emt 00:00:09]} 13. dxc4 {[%clk 00:43:46]} {[%emt 00:00:05]} O-O
{[%clk 00:43:51]} {[%emt 00:00:11]} 14. Kg1 {[%clk 00:43:58]} {[%emt 00:00:19]}
Re8 {[%clk 00:44:03]} {[%emt 00:00:17]} 15. Bg5 {[%clk 00:43:47]} {[%emt
00:00:41]} Qd7 {[%clk 00:44:26]} {[%emt 00:00:07]} 16. c5 {[%clk 00:43:48]}
{[%emt 00:00:29]} f6 {[%clk 00:44:45]} {[%emt 00:00:12]} 17. Bh4 {[%clk
00:43:52]} {[%emt 00:00:25]} Rad8 {[%clk 00:45:08]} {[%emt 00:00:08]} 18. cxd6
{[%clk 00:44:06]} {[%emt 00:00:16]} Qxd6 {[%clk 00:45:30]} {[%emt 00:00:08]} 19.
Qe2 {[%clk 00:43:45]} {[%emt 00:00:50]} e4 {[%clk 00:45:34]} {[%emt 00:00:26]}
20. Nh2 {[%clk 00:43:25]} {[%emt 00:00:50]} Qd4+ {[%clk 00:45:45]} {[%emt
00:00:19]} 21. Kh1 {[%clk 00:43:11]} {[%emt 00:00:44]} e3 {[%clk 00:44:44]}
{[%emt 00:01:31]} 22. c3 {[%clk 00:43:05]} {[%emt 00:00:37]} Qxh4 {[%clk
00:44:59]} {[%emt 00:00:15]} 23. Nf3 {[%clk 00:42:36]} {[%emt 00:00:58]} Qe4
{[%clk 00:45:17]} {[%emt 00:00:12]} 24. Rd1 {[%emt 00:01:25]} Rxd1+ {[%clk
00:45:23]} {[%emt 00:00:15]} 25. Qxd1 {[%clk 00:42:18]} {[%emt 00:00:02]} e2
{[%clk 00:45:34]} {[%emt 00:00:19]} 26. Qe1 {[%clk 00:42:17]} {[%emt 00:00:30]}
Rd8 {[%clk 00:45:56]} {[%emt 00:00:09]} 27. Qg3 {[%clk 00:40:53]} {[%emt
00:01:55]} Rd1+ {[%clk 00:45:51]} {[%emt 00:00:35]} 28. Kh2 {[%clk 00:41:07]}
{[%emt 00:00:06]} Qxf3 {[%clk 00:46:08]} {[%emt 00:00:22]} 29. Qxf3 {[%clk
00:40:47]} {[%emt 00:00:50]} e1=Q {[%clk 00:46:36]} {[%emt 00:00:03]} 30. Qxb7
{[%clk 00:40:40]} {[%emt 00:00:36]} Qe5+ {[%clk 00:46:52]} {[%emt 00:00:14]} 31.
g3 {[%clk 00:40:09]} {[%emt 00:01:01]} Rd2+ {[%clk 00:47:17]} {[%emt 00:00:06]}
32. Qg2 {[%clk 00:40:17]} {[%emt 00:00:21]} Rxg2+ {[%clk 00:47:43]} {[%emt
00:00:05]} 33. Kxg2 {[%clk 00:40:40]} {[%emt 00:00:07]} Qe2+ {[%clk 00:48:08]}
{[%emt 00:00:04]} 34. Kg1 {[%clk 00:41:00]} {[%emt 00:00:11]} Kf7 {[%clk
00:48:35]} {[%emt 00:00:03]} 35. Kh1 {[%clk 00:41:20]} {[%emt 00:00:09]} Ke6
{[%clk 00:48:51]} {[%emt 00:00:15]} 36. Kg1 {[%clk 00:41:32]} {[%emt 00:00:17]}
Kd5 {[%clk 00:49:14]} {[%emt 00:00:08]} 37. Kh1 {[%clk 00:41:58]} {[%emt
00:00:04]} Ke4 {[%emt 00:00:07]} 38. Kg1 {[%clk 00:42:15]} {[%emt 00:00:10]}
Kf3 {[%clk 00:49:57]} {[%emt 00:00:13]} 39. Kh1 {[%clk 00:42:32]} {[%emt
00:00:12]} Qg2# {[%clk 00:49:51]} {[%emt 00:00:06]} 0-1

[Event "ONJK DE"]
[Site "Enschede, Netherlands"]
[Date "2022.08.08"]
[Round "1.7"]
[White "Thijssen, Freek (E)"]
[Black "Brorens, Victor (E)"]
[Result "1-0"]
[TimeControl "40min + 30sec/move"]
[WhiteElo "1484"]
[BlackElo "952"]

1. e4 {[%clk 00:40:55]} {[%emt 00:00:05]} e5 {[%clk 00:40:44]} {[%emt
00:00:06]} 2. Nf3 {[%clk 00:41:20]} {[%emt 00:00:16]} Nc6 {[%emt 00:00:01]} 3.
Bc4 {[%emt 00:00:09]} Bc5 {[%emt 00:00:09]} 4. c3 {[%emt 00:00:10]} Nf6 {[%clk
00:40:35]} {[%emt 00:00:05]} 5. d4 {[%clk 00:41:45]} {[%emt 00:00:09]} exd4
{[%clk 00:40:56]} {[%emt 00:00:09]} 6. cxd4 {[%clk 00:42:11]} {[%emt 00:00:05]}
Bb4+ {[%clk 00:41:13]} {[%emt 00:00:11]} 7. Bd2 {[%clk 00:42:36]} {[%emt
00:00:07]} Bxd2+ {[%clk 00:41:33]} {[%emt 00:00:10]} 8. Nbxd2 {[%clk 00:42:59]}
{[%emt 00:00:06]} O-O {[%clk 00:41:52]} {[%emt 00:00:08]} 9. d5 {[%clk
00:42:47]} {[%emt 00:00:46]} Na5 {[%clk 00:42:07]} {[%emt 00:00:14]} 10. Bd3
{[%clk 00:42:44]} {[%emt 00:00:33]} b6 {[%clk 00:42:22]} {[%emt 00:00:15]} 11.
O-O {[%clk 00:42:31]} {[%emt 00:00:43]} d6 {[%clk 00:42:39]} {[%emt 00:00:04]}
12. h3 {[%clk 00:42:30]} {[%emt 00:00:41]} Bd7 {[%clk 00:42:53]} {[%emt
00:00:15]} 13. Rc1 {[%clk 00:42:18]} {[%emt 00:00:42]} Re8 {[%clk 00:42:55]}
{[%emt 00:00:28]} 14. Qc2 {[%clk 00:41:48]} {[%emt 00:01:00]} Rc8 {[%emt
00:00:15]} 15. Ba6 {[%clk 00:41:32]} {[%emt 00:00:43]} Rb8 {[%clk 00:43:19]}
{[%emt 00:00:07]} 16. Qxc7 {[%clk 00:40:59]} {[%emt 00:01:21]} Qxc7 {[%clk
00:43:36]} {[%emt 00:00:13]} 17. Rxc7 {[%clk 00:41:18]} {[%emt 00:00:11]} Kf8
{[%clk 00:43:49]} {[%emt 00:00:17]} 18. b4 {[%clk 00:41:34]} {[%emt 00:00:14]}
Bc8 {[%clk 00:43:57]} {[%emt 00:00:18]} 19. Rxc8 {[%clk 00:41:31]} {[%emt
00:00:36]} Rbxc8 {[%clk 00:44:06]} {[%emt 00:00:11]} 20. Bxc8 {[%clk 00:41:53]}
{[%emt 00:00:18]} Rxc8 {[%clk 00:44:06]} {[%emt 00:00:30]} 21. bxa5 {[%clk
00:42:16]} {[%emt 00:00:08]} bxa5 {[%emt 00:00:13]} 22. Rb1 {[%emt 00:01:35]}
Re8 {[%clk 00:42:35]} {[%emt 00:00:09]} 23. Rb5 {[%clk 00:42:06]} {[%emt
00:00:43]} Nxe4 {[%emt 00:00:13]} 24. Nxe4 {[%emt 00:00:15]} Rxe4 {[%emt
00:00:12]} 25. Rxa5 {[%emt 00:00:06]} Re7 {[%clk 00:42:05]} {[%emt 00:00:14]}
26. Nd4 {[%clk 00:42:17]} {[%emt 00:00:19]} Rc7 {[%clk 00:42:11]} {[%emt
00:00:25]} 27. Nc6 {[%clk 00:42:37]} {[%emt 00:00:10]} Ke8 {[%clk 00:40:30]}
{[%emt 00:00:22]} 1-0

[Event "ONJK DE"]
[Site "Enschede, Netherlands"]
[Date "2022.08.08"]
[Round "1.8"]
[White "Mendelsohn, Saffran (E)"]
[Black "Leenen, Boyd (E)"]
[Result "0-1"]
[TimeControl "40min + 30sec/move"]
[WhiteElo "824"]
[BlackElo "1417"]

1. e4 {[%clk 00:40:59]} e5 {[%clk 00:40:56]} {[%emt 00:00:05]} 2. Bc4 {[%clk
00:41:23]} {[%emt 00:00:06]} Nf6 {[%clk 00:41:20]} {[%emt 00:00:06]} 3. Nc3
{[%clk 00:41:38]} {[%emt 00:00:14]} Bc5 {[%clk 00:41:42]} {[%emt 00:00:08]} 4.
Nf3 {[%clk 00:41:58]} {[%emt 00:00:10]} Nc6 {[%clk 00:42:06]} {[%emt 00:00:07]}
5. d3 {[%clk 00:42:09]} {[%emt 00:00:19]} h6 {[%clk 00:42:34]} {[%emt
00:00:02]} 6. O-O {[%clk 00:42:21]} {[%emt 00:00:18]} d6 {[%clk 00:42:58]}
{[%emt 00:00:06]} 7. h3 {[%clk 00:42:39]} {[%emt 00:00:11]} Be6 {[%clk
00:43:23]} {[%emt 00:00:05]} 8. Bb3 {[%clk 00:42:56]} {[%emt 00:00:14]} O-O
{[%clk 00:43:45]} {[%emt 00:00:08]} 9. Be3 {[%clk 00:43:16]} {[%emt 00:00:09]}
Bb6 {[%clk 00:44:11]} {[%emt 00:00:05]} 10. Re1 {[%clk 00:43:30]} {[%emt
00:00:16]} Re8 {[%clk 00:44:32]} {[%emt 00:00:09]} 11. Bxb6 {[%clk 00:43:33]}
{[%emt 00:00:27]} axb6 {[%clk 00:44:55]} {[%emt 00:00:07]} 12. d4 {[%clk
00:43:40]} {[%emt 00:00:23]} exd4 {[%clk 00:45:17]} {[%emt 00:00:07]} 13. Nxd4
{[%clk 00:43:57]} {[%emt 00:00:14]} Qd7 {[%clk 00:45:22]} {[%emt 00:00:25]} 14.
Qd3 {[%clk 00:43:36]} {[%emt 00:00:51]} Rad8 {[%clk 00:44:36]} {[%emt
00:01:15]} 15. Rad1 {[%clk 00:43:40]} {[%emt 00:00:27]} Bxb3 {[%clk 00:45:00]}
{[%emt 00:00:06]} 16. axb3 {[%clk 00:44:00]} {[%emt 00:00:10]} Ne5 {[%clk
00:44:25]} {[%emt 00:01:04]} 17. Qe3 {[%clk 00:43:12]} {[%emt 00:01:17]} Ng6
{[%clk 00:44:12]} {[%emt 00:00:44]} 18. Nf5 {[%clk 00:41:17]} {[%emt 00:02:26]}
Kh7 {[%clk 00:42:59]} {[%emt 00:01:43]} 19. Nd5 {[%clk 00:40:25]} {[%emt
00:01:22]} Nxe4 {[%clk 00:42:58]} {[%emt 00:00:32]} 20. Qf3 {[%clk 00:39:44]}
{[%emt 00:01:08]} Ng5 {[%clk 00:42:44]} {[%emt 00:00:45]} 21. Qg4 {[%clk
00:38:49]} {[%emt 00:01:25]} Ne5 {[%clk 00:42:41]} {[%emt 00:00:32]} 22. Qf4
{[%clk 00:38:12]} {[%emt 00:01:07]} Nef3+ {[%clk 00:42:42]} {[%emt 00:00:30]}
23. Kf1 {[%clk 00:37:44]} {[%emt 00:00:58]} Nxe1 {[%clk 00:42:31]} {[%emt
00:00:41]} 24. Rxe1 {[%clk 00:38:02]} {[%emt 00:00:12]} Rxe1+ {[%clk 00:42:52]}
{[%emt 00:00:08]} 25. Kxe1 {[%clk 00:38:20]} {[%emt 00:00:13]} Qe6+ {[%clk
00:42:39]} {[%emt 00:00:44]} 26. Nde3 {[%clk 00:38:25]} {[%emt 00:00:25]} Qf6
{[%clk 00:42:32]} {[%emt 00:00:36]} 27. h4 {[%clk 00:38:17]} {[%emt 00:00:39]}
Ne6 {[%clk 00:42:46]} {[%emt 00:00:16]} 28. Qe4 {[%clk 00:38:06]} {[%emt
00:00:41]} g6 {[%clk 00:42:49]} {[%emt 00:00:26]} 29. Nxh6 {[%clk 00:38:06]}
{[%emt 00:00:30]} Kg7 {[%clk 00:41:54]} {[%emt 00:01:26]} 30. h5 {[%clk
00:37:28]} {[%emt 00:01:08]} Qg5 {[%clk 00:40:05]} {[%emt 00:02:18]} 31. Neg4
{[%clk 00:37:12]} {[%emt 00:00:46]} Qxh5 {[%clk 00:39:37]} {[%emt 00:00:58]} 32.
Qf3 {[%clk 00:37:04]} {[%emt 00:00:38]} Qa5+ {[%clk 00:36:59]} {[%emt
00:03:08]} 33. Kd1 {[%clk 00:36:47]} {[%emt 00:00:47]} f5 {[%clk 00:35:46]}
{[%emt 00:01:43]} 34. b4 {[%clk 00:32:55]} {[%emt 00:04:22]} fxg4 {[%clk
00:34:31]} {[%emt 00:01:46]} 35. Qf7+ {[%clk 00:33:13]} {[%emt 00:00:11]} Kxh6
{[%clk 00:34:52]} {[%emt 00:00:09]} 36. bxa5 {[%clk 00:33:29]} {[%emt
00:00:15]} Ng5 {[%clk 00:34:51]} {[%emt 00:00:31]} 37. Qxc7 {[%clk 00:33:41]}
{[%emt 00:00:17]} Rf8 {[%clk 00:35:10]} {[%emt 00:00:10]} 38. Qc3 {[%clk
00:33:36]} {[%emt 00:00:36]} Rxf2 {[%clk 00:35:12]} {[%emt 00:00:28]} 39. axb6
{[%clk 00:33:17]} {[%emt 00:00:50]} Rxg2 {[%clk 00:34:53]} {[%emt 00:00:48]} 40.
Qc7 {[%clk 00:33:24]} {[%emt 00:00:23]} Rg1+ {[%clk 00:35:10]} {[%emt
00:00:14]} 41. Kd2 {[%clk 00:33:42]} {[%emt 00:00:11]} g3 {[%clk 00:35:26]}
{[%emt 00:00:15]} 42. Qxb7 {[%clk 00:33:58]} {[%emt 00:00:14]} g2 {[%clk
00:35:35]} {[%emt 00:00:21]} 43. Kc3 {[%clk 00:33:51]} {[%emt 00:00:36]} Ne6
{[%clk 00:35:28]} {[%emt 00:00:37]} 44. Qa8 {[%clk 00:33:59]} {[%emt 00:00:22]}
Nf4 {[%clk 00:35:39]} {[%emt 00:00:19]} 45. b7 {[%clk 00:33:43]} {[%emt
00:00:47]} Rf1 {[%clk 00:35:56]} {[%emt 00:00:12]} 46. Qh8+ {[%clk 00:33:41]}
{[%emt 00:00:32]} Kg5 {[%clk 00:35:59]} {[%emt 00:00:27]} 47. Qd8+ {[%clk
00:34:02]} {[%emt 00:00:10]} Kg4 {[%clk 00:36:01]} {[%emt 00:00:28]} 48. Qc8+
{[%clk 00:33:59]} {[%emt 00:00:33]} Kg3 {[%clk 00:36:11]} {[%emt 00:00:18]} 49.
b8=Q {[%emt 00:00:39]} g1=Q {[%emt 00:00:12]} 50. Kb3 {[%clk 00:33:00]} {[%emt
00:00:38]} Rf3+ {[%clk 00:36:14]} {[%emt 00:00:27]} 51. Ka2 {[%clk 00:32:58]}
{[%emt 00:00:34]} Qd4 {[%clk 00:35:46]} {[%emt 00:00:55]} 52. Qb5 {[%clk
00:32:54]} {[%emt 00:00:37]} Nd5 {[%clk 00:35:32]} {[%emt 00:00:42]} 53. c3
{[%clk 00:32:48]} {[%emt 00:00:37]} Qd2 {[%clk 00:35:07]} {[%emt 00:00:55]} 54.
Ka3 {[%clk 00:31:56]} {[%emt 00:01:16]} Nxc3 {[%clk 00:35:04]} {[%emt
00:00:40]} 55. bxc3 {[%clk 00:32:00]} {[%emt 00:00:25]} Rxc3+ {[%clk 00:35:25]}
{[%emt 00:00:09]} 56. Qxc3 {[%clk 00:31:53]} {[%emt 00:00:37]} Qxc3+ {[%clk
00:35:47]} {[%emt 00:00:09]} 57. Ka2 {[%clk 00:32:14]} {[%emt 00:00:09]} Qd2+
{[%clk 00:35:52]} {[%emt 00:00:25]} 58. Kb3 {[%clk 00:32:31]} {[%emt 00:00:13]}
Qe3+ {[%clk 00:35:57]} {[%emt 00:00:22]} 59. Ka4 {[%emt 00:00:21]} Qe4+ {[%emt
00:00:36]} 60. Ka3 {[%clk 00:31:48]} {[%emt 00:00:18]} Qf3+ {[%clk 00:36:11]}
{[%emt 00:00:16]} 61. Kb2 {[%clk 00:31:57]} {[%emt 00:00:21]} Qf2+ {[%clk
00:36:00]} {[%emt 00:00:42]} 62. Kc3 {[%clk 00:31:50]} {[%emt 00:00:36]} Qc5+
{[%clk 00:36:26]} {[%emt 00:00:04]} 63. Qxc5 {[%clk 00:32:09]} {[%emt
00:00:11]} dxc5 {[%clk 00:36:50]} {[%emt 00:00:06]} 64. Kc4 {[%clk 00:32:06]}
{[%emt 00:00:33]} Kf3 {[%clk 00:37:12]} {[%emt 00:00:08]} 65. Kxc5 {[%clk
00:32:28]} {[%emt 00:00:08]} g5 {[%clk 00:37:36]} {[%emt 00:00:06]} 66. Kd4
{[%clk 00:32:52]} {[%emt 00:00:06]} g4 {[%clk 00:37:59]} {[%emt 00:00:07]} 67.
Kd3 {[%clk 00:33:07]} {[%emt 00:00:16]} g3 {[%clk 00:38:21]} {[%emt 00:00:07]}
68. Kd2 {[%clk 00:33:31]} {[%emt 00:00:06]} Kf2 {[%clk 00:38:46]} {[%emt
00:00:06]} 69. Kd3 {[%clk 00:33:55]} {[%emt 00:00:06]} g2 {[%clk 00:39:09]}
{[%emt 00:00:07]} 70. Ke4 {[%clk 00:34:05]} {[%emt 00:00:20]} g1=Q {[%emt
00:00:10]} 71. Kd4 {[%emt 00:00:05]} Qe1 {[%emt 00:00:16]} 72. Kd5 {[%clk
00:34:25]} Qe3 {[%clk 00:39:40]} {[%emt 00:00:06]} 73. Kd6 {[%clk 00:34:47]}
{[%emt 00:00:08]} Qe4 {[%clk 00:40:04]} {[%emt 00:00:07]} 74. Kc5 {[%clk
00:34:30]} {[%emt 00:00:09]} 0-1

[Event "ONJK DE"]
[Site "Enschede, Netherlands"]
[Date "2022.08.09"]
[Round "2.1"]
[White "Peeters, Yumi"]
[Black "Groenewoud, Joel"]
[Result "0-1"]
[TimeControl "40min + 30sec/move"]
[WhiteElo "1213"]
[BlackElo "1497"]

1. e4 {[%clk 00:40:58]} {[%emt 00:00:01]} c6 {[%clk 00:40:59]} {[%emt
00:00:02]} 2. Nf3 {[%clk 00:41:12]} {[%emt 00:00:15]} d5 {[%clk 00:41:25]}
{[%emt 00:00:04]} 3. Nc3 {[%clk 00:41:32]} {[%emt 00:00:10]} dxe4 {[%clk
00:41:51]} {[%emt 00:00:05]} 4. Nxe4 {[%clk 00:41:53]} {[%emt 00:00:08]} Nf6
{[%clk 00:42:12]} {[%emt 00:00:09]} 5. Qe2 {[%clk 00:42:10]} {[%emt 00:00:13]}
Nxe4 {[%clk 00:42:35]} {[%emt 00:00:07]} 6. Qxe4 {[%clk 00:42:32]} {[%emt
00:00:08]} Qa5 {[%clk 00:42:57]} {[%emt 00:00:08]} 7. Bc4 {[%clk 00:41:31]}
{[%emt 00:01:30]} Bf5 {[%clk 00:43:19]} {[%emt 00:00:09]} 8. Qd4 {[%clk
00:40:16]} {[%emt 00:01:45]} e6 {[%clk 00:41:37]} {[%emt 00:02:13]} 9. c3
{[%clk 00:36:32]} {[%emt 00:04:14]} Nd7 {[%clk 00:40:12]} {[%emt 00:01:55]} 10.
Qf4 {[%clk 00:33:00]} {[%emt 00:04:01]} Rd8 {[%clk 00:36:11]} {[%emt 00:04:31]}
11. O-O {[%clk 00:32:29]} {[%emt 00:01:01]} Nf6 {[%clk 00:34:06]} {[%emt
00:02:35]} 12. d4 {[%clk 00:31:00]} {[%emt 00:01:59]} Bd6 {[%clk 00:33:34]}
{[%emt 00:01:02]} 13. Qh4 {[%clk 00:29:29]} {[%emt 00:02:01]} O-O {[%clk
00:27:48]} {[%emt 00:06:16]} 14. Bg5 {[%clk 00:26:55]} {[%emt 00:03:04]} Be7
{[%clk 00:26:45]} {[%emt 00:01:32]} 15. Qg3 {[%clk 00:25:03]} {[%emt 00:02:23]}
Ne4 {[%clk 00:22:01]} {[%emt 00:05:15]} 16. Qh4 {[%clk 00:23:12]} {[%emt
00:02:20]} Bxg5 {[%clk 00:18:13]} {[%emt 00:04:18]} 17. Nxg5 {[%clk 00:23:07]}
{[%emt 00:00:35]} Nd2 {[%clk 00:15:57]} {[%emt 00:02:45]} 18. Bb3 {[%clk
00:19:39]} {[%emt 00:03:59]} Nxf1 {[%clk 00:13:07]} {[%emt 00:03:20]} 19. Rxf1
{[%clk 00:19:55]} {[%emt 00:00:13]} h6 {[%clk 00:12:51]} {[%emt 00:00:46]} 20.
Nf3 {[%clk 00:17:45]} {[%emt 00:02:40]} c5 {[%clk 00:12:45]} {[%emt 00:00:37]}
21. Re1 {[%clk 00:14:04]} {[%emt 00:04:11]} cxd4 {[%emt 00:01:10]} 22. Re5
{[%clk 00:13:53]} Qc7 {[%clk 00:10:48]} {[%emt 00:02:26]} 23. cxd4 {[%clk
00:11:43]} {[%emt 00:02:41]} Qc1+ {[%clk 00:09:28]} {[%emt 00:01:49]} 24. Re1
{[%clk 00:10:50]} {[%emt 00:01:23]} Qxb2 {[%clk 00:09:43]} {[%emt 00:00:15]} 25.
Qe7 {[%clk 00:10:33]} {[%emt 00:00:48]} Rc8 {[%clk 00:08:03]} {[%emt 00:02:09]}
26. Qxb7 {[%emt 00:02:36]} Rc1 {[%clk 00:07:11]} {[%emt 00:01:18]} 27. d5
{[%clk 00:07:13]} {[%emt 00:01:49]} Qb1 {[%clk 00:05:48]} {[%emt 00:01:52]} 28.
Kf1 {[%clk 00:06:53]} {[%emt 00:00:51]} Bd3+ {[%clk 00:06:11]} {[%emt
00:00:08]} 0-1

[Event "ONJK DE"]
[Site "Enschede, Netherlands"]
[Date "2022.08.09"]
[Round "2.2"]
[White "Gang, Kevin Wan Ze"]
[Black "Declerck, Adriaan"]
[Result "0-1"]
[TimeControl "40min + 30sec/move"]
[WhiteElo "1105"]
[BlackElo "1371"]

1. e4 {[%clk 00:40:58]} {[%emt 00:00:01]} c6 {[%clk 00:40:53]} {[%emt
00:00:08]} 2. d4 {[%clk 00:41:21]} {[%emt 00:00:07]} d5 {[%clk 00:41:18]}
{[%emt 00:00:04]} 3. e5 {[%clk 00:41:45]} {[%emt 00:00:06]} Bf5 {[%clk
00:41:41]} {[%emt 00:00:07]} 4. Nc3 {[%clk 00:42:00]} {[%emt 00:00:15]} e6
{[%clk 00:42:02]} {[%emt 00:00:09]} 5. Nf3 {[%clk 00:42:19]} {[%emt 00:00:11]}
h6 {[%clk 00:42:18]} {[%emt 00:00:15]} 6. Bd3 {[%clk 00:42:16]} {[%emt
00:00:31]} Bxd3 {[%clk 00:42:41]} {[%emt 00:00:09]} 7. Qxd3 {[%clk 00:42:38]}
{[%emt 00:00:07]} a6 {[%clk 00:42:56]} {[%emt 00:00:16]} 8. a4 {[%clk
00:42:11]} {[%emt 00:00:57]} c5 {[%clk 00:42:59]} {[%emt 00:00:26]} 9. dxc5
{[%clk 00:41:08]} {[%emt 00:01:33]} Bxc5 {[%clk 00:42:47]} {[%emt 00:00:42]} 10.
Be3 {[%clk 00:41:13]} {[%emt 00:00:25]} Bxe3 {[%clk 00:42:08]} {[%emt
00:01:09]} 11. Qxe3 {[%clk 00:41:35]} {[%emt 00:00:08]} Nc6 {[%clk 00:42:30]}
{[%emt 00:00:09]} 12. O-O {[%clk 00:40:48]} {[%emt 00:01:17]} d4 {[%clk
00:40:50]} {[%emt 00:02:10]} 13. Qd2 {[%clk 00:33:20]} {[%emt 00:07:58]} dxc3
{[%clk 00:40:37]} {[%emt 00:00:42]} 14. Qxc3 {[%clk 00:33:40]} {[%emt
00:00:10]} Nge7 {[%clk 00:40:41]} {[%emt 00:00:27]} 15. Rad1 {[%clk 00:33:38]}
{[%emt 00:00:32]} Qc7 {[%clk 00:40:51]} {[%emt 00:00:18]} 16. Rfe1 {[%clk
00:33:27]} {[%emt 00:00:43]} Nd5 {[%clk 00:40:33]} {[%emt 00:00:47]} 17. Qc4
{[%clk 00:32:06]} {[%emt 00:01:52]} Rc8 {[%clk 00:40:31]} {[%emt 00:00:32]} 18.
Qg4 {[%clk 00:31:35]} {[%emt 00:01:00]} O-O {[%clk 00:38:15]} {[%emt 00:02:46]}
19. Qg3 {[%clk 00:29:49]} {[%emt 00:02:16]} Nce7 {[%clk 00:38:02]} {[%emt
00:00:44]} 20. c3 {[%clk 00:29:36]} {[%emt 00:00:43]} Nf5 {[%clk 00:34:01]}
{[%emt 00:04:31]} 21. Qg4 {[%clk 00:28:30]} {[%emt 00:01:35]} Kh7 {[%clk
00:27:40]} {[%emt 00:06:51]} 22. Rxd5 {[%clk 00:28:07]} {[%emt 00:00:53]} exd5
{[%clk 00:27:08]} {[%emt 00:01:03]} 23. Qxf5+ {[%clk 00:28:08]} {[%emt
00:00:27]} g6 {[%clk 00:27:36]} {[%emt 00:00:03]} 24. Qh3 {[%clk 00:28:25]}
{[%emt 00:00:13]} Qc6 {[%clk 00:22:49]} {[%emt 00:05:17]} 25. Nd4 {[%clk
00:27:59]} {[%emt 00:00:56]} Qxa4 {[%clk 00:20:04]} {[%emt 00:03:15]} 26. g3
{[%clk 00:25:29]} {[%emt 00:03:00]} Rce8 {[%clk 00:15:55]} {[%emt 00:04:40]} 27.
b3 {[%clk 00:25:09]} {[%emt 00:00:49]} Qa5 {[%clk 00:16:10]} {[%emt 00:00:15]}
28. Re3 {[%clk 00:24:22]} {[%emt 00:01:17]} Qc7 {[%clk 00:15:25]} {[%emt
00:01:15]} 29. e6 {[%clk 00:23:55]} {[%emt 00:00:58]} Qc8 {[%clk 00:14:30]}
{[%emt 00:01:25]} 30. exf7 {[%clk 00:22:40]} {[%emt 00:01:43]} Rxe3 {[%clk
00:14:21]} {[%emt 00:00:40]} 31. Qxc8 {[%clk 00:21:28]} {[%emt 00:01:43]} Re1+
{[%clk 00:14:10]} {[%emt 00:00:40]} 32. Kg2 {[%clk 00:21:25]} {[%emt 00:00:33]}
Rxc8 {[%clk 00:14:02]} {[%emt 00:00:38]} 33. Nf3 {[%clk 00:21:27]} {[%emt
00:00:27]} Rc1 {[%clk 00:14:17]} {[%emt 00:00:15]} 34. Ne5 {[%clk 00:21:46]}
{[%emt 00:00:12]} Kg7 {[%clk 00:13:51]} {[%emt 00:00:54]} 35. f4 {[%clk
00:21:23]} {[%emt 00:00:55]} Rf8 {[%clk 00:13:59]} {[%emt 00:00:22]} 36. c4
{[%clk 00:21:01]} {[%emt 00:00:52]} dxc4 {[%clk 00:14:22]} {[%emt 00:00:08]} 37.
bxc4 {[%clk 00:21:19]} {[%emt 00:00:11]} Rxf7 {[%clk 00:14:44]} {[%emt
00:00:07]} 38. Nxf7 {[%clk 00:21:45]} {[%emt 00:00:05]} a5 {[%clk 00:15:01]}
{[%emt 00:00:11]} 39. Nd6 {[%clk 00:22:11]} {[%emt 00:00:06]} a4 {[%clk
00:15:19]} {[%emt 00:00:13]} 40. Nxb7 {[%clk 00:21:38]} {[%emt 00:01:02]} Rxc4
{[%clk 00:14:51]} {[%emt 00:00:58]} 41. Nd6 {[%clk 00:21:33]} {[%emt 00:00:35]}
Rc2+ {[%clk 00:14:24]} {[%emt 00:00:58]} 42. Kh3 {[%clk 00:20:45]} {[%emt
00:01:17]} a3 {[%clk 00:14:34]} {[%emt 00:00:20]} 43. Nb5 {[%clk 00:20:37]}
{[%emt 00:00:38]} a2 {[%clk 00:14:33]} {[%emt 00:00:32]} 44. Nd4 {[%clk
00:20:25]} {[%emt 00:00:42]} Rb2 {[%clk 00:14:36]} {[%emt 00:00:26]} 45. Ne6+
{[%clk 00:20:19]} {[%emt 00:00:36]} Kf6 {[%clk 00:14:44]} {[%emt 00:00:22]} 46.
f5 {[%clk 00:20:08]} {[%emt 00:00:40]} a1=Q {[%clk 00:14:49]} {[%emt 00:00:26]}
47. fxg6 {[%clk 00:20:15]} {[%emt 00:00:23]} Qf1+ {[%clk 00:14:49]} {[%emt
00:00:29]} 48. Kh4 {[%clk 00:20:15]} {[%emt 00:00:30]} Rxh2+ {[%clk 00:15:09]}
{[%emt 00:00:10]} 49. Kg4 {[%clk 00:20:06]} {[%emt 00:00:39]} Qf5# {[%clk
00:14:59]} {[%emt 00:00:10]} 0-1